Workbook

Sheet Sheet1
A1: MFN and preferential trade shares by regions and economies, 2022
A2: Total imports in USD million and shares by duty category in per cent
A3: Based on ERSD-2025-02 working paper "Significance of MFN terms in Global Trade: A comprehensive analysis"
A5: Region/Economy | B5: Income groupa | C5: Total imports | D5: MFN import share | E5: MFN | F5: MFN dutiable share | G5: Preferential share
C6: (USD million) | E6: duty-free share
A7: Africa | C7: 694,031 | D7: 89% | E7: 18% | F7: 71% | G7: 11%
A8: Algeria* | B8: LM | C8: =VLOOKUP(A8,[1]all_after!$A:$G,7,FALSE) -> 46,053 | D8: =SUM(E8:F8) -> 100% | E8: =VLOOKUP(A8,[1]percentages_after!$A:$C,3,FALSE) -> 2% | F8: =VLOOKUP(A8,[1]percentages_after!$A:$D,4,FALSE)+VLOOKUP(A8,[1]percentages_after!$A:$E,5,FALSE) -> 98% | G8: =1-D8 -> 0%
A9: Angola* | B9: LM | C9: =VLOOKUP(A9,[1]all_after!$A:$G,7,FALSE) -> 17,843 | D9: =SUM(E9:F9) -> 99% | E9: =VLOOKUP(A9,[1]percentages_after!$A:$C,3,FALSE) -> 42% | F9: =VLOOKUP(A9,[1]percentages_after!$A:$D,4,FALSE)+VLOOKUP(A9,[1]percentages_after!$A:$E,5,FALSE) -> 57% | G9: 1%
A10: Benin* | B10: LM | C10: =VLOOKUP(A10,[1]all_after!$A:$G,7,FALSE) -> 3,847 | D10: 93% | E10: =VLOOKUP(A10,[1]percentages_after!$A:$C,3,FALSE) -> 6% | F10: =VLOOKUP(A10,[1]percentages_after!$A:$D,4,FALSE)+VLOOKUP(A10,[1]percentages_after!$A:$E,5,FALSE) -> 87% | G10: 7%
A11: Botswana* | B11: UM | C11: =VLOOKUP(A11,[1]all_after!$A:$G,7,FALSE) -> 8,115 | D11: 69% | E11: =VLOOKUP(A11,[1]percentages_after!$A:$C,3,FALSE) -> 48% | F11: =VLOOKUP(A11,[1]percentages_after!$A:$D,4,FALSE)+VLOOKUP(A11,[1]percentages_after!$A:$E,5,FALSE) -> 21% | G11: 31%
A12: Burkina Faso* | B12: L | C12: =VLOOKUP(A12,[1]all_after!$A:$G,7,FALSE) -> 5,647 | D12: 87% | E12: =VLOOKUP(A12,[1]percentages_after!$A:$C,3,FALSE) -> 10% | F12: =VLOOKUP(A12,[1]percentages_after!$A:$D,4,FALSE)+VLOOKUP(A12,[1]percentages_after!$A:$E,5,FALSE) -> 77% | G12: 13%
A13: Burundi* | B13: L | C13: =VLOOKUP(A13,[1]all_after!$A:$G,7,FALSE) -> 1,260 | D13: 73% | E13: =VLOOKUP(A13,[1]percentages_after!$A:$C,3,FALSE) -> 35% | F13: =VLOOKUP(A13,[1]percentages_after!$A:$D,4,FALSE)+VLOOKUP(A13,[1]percentages_after!$A:$E,5,FALSE) -> 38% | G13: 27%
A14: Cabo Verde* | B14: LM | C14: =VLOOKUP(A14,[1]all_after!$A:$G,7,FALSE) -> 1,772 | D14: 100% | E14: =VLOOKUP(A14,[1]percentages_after!$A:$C,3,FALSE) -> 5% | F14: =VLOOKUP(A14,[1]percentages_after!$A:$D,4,FALSE)+VLOOKUP(A14,[1]percentages_after!$A:$E,5,FALSE) -> 95% | G14: -0%
A15: Cameroon* | B15: LM | C15: =VLOOKUP(A15,[1]all_after!$A:$G,7,FALSE) -> 6,969 | D15: 84% | E15: =VLOOKUP(A15,[1]percentages_after!$A:$C,3,FALSE) -> 0% | F15: =VLOOKUP(A15,[1]percentages_after!$A:$D,4,FALSE)+VLOOKUP(A15,[1]percentages_after!$A:$E,5,FALSE) -> 84% | G15: 16%
A16: Central African Republic* | B16: L | C16: =VLOOKUP(A16,[1]all_after!$A:$G,7,FALSE) -> 623 | D16: 91% | E16: =VLOOKUP(A16,[1]percentages_after!$A:$C,3,FALSE) -> 7% | F16: =VLOOKUP(A16,[1]percentages_after!$A:$D,4,FALSE)+VLOOKUP(A16,[1]percentages_after!$A:$E,5,FALSE) -> 84% | G16: 9%
A17: Comoros* | B17: LM | C17: =VLOOKUP(A17,[1]all_after!$A:$G,7,FALSE) -> 326 | D17: 100% | E17: =VLOOKUP(A17,[1]percentages_after!$A:$C,3,FALSE) -> 36% | F17: =VLOOKUP(A17,[1]percentages_after!$A:$D,4,FALSE)+VLOOKUP(A17,[1]percentages_after!$A:$E,5,FALSE) -> 64% | G17: 0%
A18: Congo* | B18: LM | C18: =VLOOKUP(A18,[1]all_after!$A:$G,7,FALSE) -> 2,352 | D18: 100% | E18: =VLOOKUP(A18,[1]percentages_after!$A:$C,3,FALSE) -> 1% | F18: =VLOOKUP(A18,[1]percentages_after!$A:$D,4,FALSE)+VLOOKUP(A18,[1]percentages_after!$A:$E,5,FALSE) -> 99% | G18: 0%
A19: Côte d'Ivoire* | B19: LM | C19: =VLOOKUP(A19,[1]all_after!$A:$G,7,FALSE) -> 8,576 | D19: 79% | E19: =VLOOKUP(A19,[1]percentages_after!$A:$C,3,FALSE) -> 10% | F19: =VLOOKUP(A19,[1]percentages_after!$A:$D,4,FALSE)+VLOOKUP(A19,[1]percentages_after!$A:$E,5,FALSE) -> 70% | G19: 21%
A20: Democratic Republic of the Congo* | B20: L | C20: =VLOOKUP(A20,[1]all_after!$A:$G,7,FALSE) -> 11,407 | D20: 100% | E20: =VLOOKUP(A20,[1]percentages_after!$A:$C,3,FALSE) -> 0% | F20: =VLOOKUP(A20,[1]percentages_after!$A:$D,4,FALSE)+VLOOKUP(A20,[1]percentages_after!$A:$E,5,FALSE) -> 100% | G20: -0%
A21: Egypt* | B21: LM | C21: =VLOOKUP(A21,[1]all_after!$A:$G,7,FALSE) -> 96,188 | D21: 100% | E21: =VLOOKUP(A21,[1]percentages_after!$A:$C,3,FALSE) -> 0% | F21: =VLOOKUP(A21,[1]percentages_after!$A:$D,4,FALSE)+VLOOKUP(A21,[1]percentages_after!$A:$E,5,FALSE) -> 100% | G21: 0%
A22: Eswatini* | B22: LM | C22: =VLOOKUP(A22,[1]all_after!$A:$G,7,FALSE) -> 2,116 | D22: 63% | E22: =VLOOKUP(A22,[1]percentages_after!$A:$C,3,FALSE) -> 41% | F22: =VLOOKUP(A22,[1]percentages_after!$A:$D,4,FALSE)+VLOOKUP(A22,[1]percentages_after!$A:$E,5,FALSE) -> 22% | G22: 37%
A23: Ethiopia* | B23: L | C23: =VLOOKUP(A23,[1]all_after!$A:$G,7,FALSE) -> 16,538 | D23: 99% | E23: =VLOOKUP(A23,[1]percentages_after!$A:$C,3,FALSE) -> 15% | F23: =VLOOKUP(A23,[1]percentages_after!$A:$D,4,FALSE)+VLOOKUP(A23,[1]percentages_after!$A:$E,5,FALSE) -> 84% | G23: 1%
A24: Gabon* | B24: UM | C24: =VLOOKUP(A24,[1]all_after!$A:$G,7,FALSE) -> 3,646 | D24: 100% | E24: =VLOOKUP(A24,[1]percentages_after!$A:$C,3,FALSE) -> 1% | F24: =VLOOKUP(A24,[1]percentages_after!$A:$D,4,FALSE)+VLOOKUP(A24,[1]percentages_after!$A:$E,5,FALSE) -> 99% | G24: 0%
A25: Ghana* | B25: LM | C25: =VLOOKUP(A25,[1]all_after!$A:$G,7,FALSE) -> 17,963 | D25: 84% | E25: =VLOOKUP(A25,[1]percentages_after!$A:$C,3,FALSE) -> 5% | F25: =VLOOKUP(A25,[1]percentages_after!$A:$D,4,FALSE)+VLOOKUP(A25,[1]percentages_after!$A:$E,5,FALSE) -> 79% | G25: 16%
A26: Guinea* | B26: LM | C26: =VLOOKUP(A26,[1]all_after!$A:$G,7,FALSE) -> 5,000 | D26: 95% | E26: =VLOOKUP(A26,[1]percentages_after!$A:$C,3,FALSE) -> 1% | F26: =VLOOKUP(A26,[1]percentages_after!$A:$D,4,FALSE)+VLOOKUP(A26,[1]percentages_after!$A:$E,5,FALSE) -> 94% | G26: 5%
A27: Guinea-Bissau* | B27: L | C27: =VLOOKUP(A27,[1]all_after!$A:$G,7,FALSE) -> 166 | D27: 84% | E27: =VLOOKUP(A27,[1]percentages_after!$A:$C,3,FALSE) -> 3% | F27: =VLOOKUP(A27,[1]percentages_after!$A:$D,4,FALSE)+VLOOKUP(A27,[1]percentages_after!$A:$E,5,FALSE) -> 81% | G27: 16%
A28: Kenya* | B28: LM | C28: =VLOOKUP(A28,[1]all_after!$A:$G,7,FALSE) -> 21,101 | D28: 92% | E28: =VLOOKUP(A28,[1]percentages_after!$A:$C,3,FALSE) -> 43% | F28: =VLOOKUP(A28,[1]percentages_after!$A:$D,4,FALSE)+VLOOKUP(A28,[1]percentages_after!$A:$E,5,FALSE) -> 49% | G28: 8%
A29: Lesotho* | B29: LM | C29: =VLOOKUP(A29,[1]all_after!$A:$G,7,FALSE) -> 1,869 | D29: 56% | E29: =VLOOKUP(A29,[1]percentages_after!$A:$C,3,FALSE) -> 28% | F29: =VLOOKUP(A29,[1]percentages_after!$A:$D,4,FALSE)+VLOOKUP(A29,[1]percentages_after!$A:$E,5,FALSE) -> 28% | G29: 44%
A30: Liberia* | B30: L | C30: =VLOOKUP(A30,[1]all_after!$A:$G,7,FALSE) -> 1,917 | D30: 65% | E30: =VLOOKUP(A30,[1]percentages_after!$A:$C,3,FALSE) -> 3% | F30: =VLOOKUP(A30,[1]percentages_after!$A:$D,4,FALSE)+VLOOKUP(A30,[1]percentages_after!$A:$E,5,FALSE) -> 62% | G30: 35%
A31: Libya* | B31: UM | C31: =VLOOKUP(A31,[1]all_after!$A:$G,7,FALSE) -> 15,664 | D31: 100% | E31: =VLOOKUP(A31,[1]percentages_after!$A:$C,3,FALSE) -> 0% | F31: =VLOOKUP(A31,[1]percentages_after!$A:$D,4,FALSE)+VLOOKUP(A31,[1]percentages_after!$A:$E,5,FALSE) -> 100% | G31: -0%
A32: Madagascar* | B32: L | C32: =VLOOKUP(A32,[1]all_after!$A:$G,7,FALSE) -> 5,541 | D32: 85% | E32: =VLOOKUP(A32,[1]percentages_after!$A:$C,3,FALSE) -> 19% | F32: =VLOOKUP(A32,[1]percentages_after!$A:$D,4,FALSE)+VLOOKUP(A32,[1]percentages_after!$A:$E,5,FALSE) -> 66% | G32: 15%
A33: Malawi* | B33: L | C33: =VLOOKUP(A33,[1]all_after!$A:$G,7,FALSE) -> 1,586 | D33: 88% | E33: =VLOOKUP(A33,[1]percentages_after!$A:$C,3,FALSE) -> 40% | F33: =VLOOKUP(A33,[1]percentages_after!$A:$D,4,FALSE)+VLOOKUP(A33,[1]percentages_after!$A:$E,5,FALSE) -> 48% | G33: 12%
A34: Mali* | B34: L | C34: =VLOOKUP(A34,[1]all_after!$A:$G,7,FALSE) -> 4,975 | D34: 81% | E34: =VLOOKUP(A34,[1]percentages_after!$A:$C,3,FALSE) -> 10% | F34: =VLOOKUP(A34,[1]percentages_after!$A:$D,4,FALSE)+VLOOKUP(A34,[1]percentages_after!$A:$E,5,FALSE) -> 71% | G34: 19%
A35: Mauritania* | B35: LM | C35: =VLOOKUP(A35,[1]all_after!$A:$G,7,FALSE) -> 5,118 | D35: 100% | E35: =VLOOKUP(A35,[1]percentages_after!$A:$C,3,FALSE) -> 11% | F35: =VLOOKUP(A35,[1]percentages_after!$A:$D,4,FALSE)+VLOOKUP(A35,[1]percentages_after!$A:$E,5,FALSE) -> 89% | G35: 0%
A36: Mauritius* | B36: UM | C36: =VLOOKUP(A36,[1]all_after!$A:$G,7,FALSE) -> 6,611 | D36: 97% | E36: =VLOOKUP(A36,[1]percentages_after!$A:$C,3,FALSE) -> 93% | F36: =VLOOKUP(A36,[1]percentages_after!$A:$D,4,FALSE)+VLOOKUP(A36,[1]percentages_after!$A:$E,5,FALSE) -> 4% | G36: 3%
A37: Morocco* | B37: LM | C37: =VLOOKUP(A37,[1]all_after!$A:$G,7,FALSE) -> 72,576 | D37: 49% | E37: =VLOOKUP(A37,[1]percentages_after!$A:$C,3,FALSE) -> 3% | F37: =VLOOKUP(A37,[1]percentages_after!$A:$D,4,FALSE)+VLOOKUP(A37,[1]percentages_after!$A:$E,5,FALSE) -> 46% | G37: 51%
A38: Mozambique* | B38: L | C38: =VLOOKUP(A38,[1]all_after!$A:$G,7,FALSE) -> 14,671 | D38: 100% | E38: =VLOOKUP(A38,[1]percentages_after!$A:$C,3,FALSE) -> 5% | F38: =VLOOKUP(A38,[1]percentages_after!$A:$D,4,FALSE)+VLOOKUP(A38,[1]percentages_after!$A:$E,5,FALSE) -> 95% | G38: 0%
A39: Namibia* | B39: UM | C39: =VLOOKUP(A39,[1]all_after!$A:$G,7,FALSE) -> 7,434 | D39: 71% | E39: =VLOOKUP(A39,[1]percentages_after!$A:$C,3,FALSE) -> 39% | F39: =VLOOKUP(A39,[1]percentages_after!$A:$D,4,FALSE)+VLOOKUP(A39,[1]percentages_after!$A:$E,5,FALSE) -> 32% | G39: 29%
A40: Niger* | B40: L | C40: =VLOOKUP(A40,[1]all_after!$A:$G,7,FALSE) -> 3,779 | D40: 90% | E40: =VLOOKUP(A40,[1]percentages_after!$A:$C,3,FALSE) -> 6% | F40: =VLOOKUP(A40,[1]percentages_after!$A:$D,4,FALSE)+VLOOKUP(A40,[1]percentages_after!$A:$E,5,FALSE) -> 85% | G40: 10%
A41: Nigeria* | B41: LM | C41: =VLOOKUP(A41,[1]all_after!$A:$G,7,FALSE) -> 60,671 | D41: 99% | E41: =VLOOKUP(A41,[1]percentages_after!$A:$C,3,FALSE) -> 3% | F41: =VLOOKUP(A41,[1]percentages_after!$A:$D,4,FALSE)+VLOOKUP(A41,[1]percentages_after!$A:$E,5,FALSE) -> 96% | G41: 1%
A42: Rwanda* | B42: L | C42: =VLOOKUP(A42,[1]all_after!$A:$G,7,FALSE) -> 5,125 | D42: 74% | E42: =VLOOKUP(A42,[1]percentages_after!$A:$C,3,FALSE) -> 32% | F42: =VLOOKUP(A42,[1]percentages_after!$A:$D,4,FALSE)+VLOOKUP(A42,[1]percentages_after!$A:$E,5,FALSE) -> 42% | G42: 26%
A43: Sao Tomé and Principe* | B43: LM | C43: =VLOOKUP(A43,[1]all_after!$A:$G,7,FALSE) -> 196 | D43: 100% | E43: =VLOOKUP(A43,[1]percentages_after!$A:$C,3,FALSE) -> 0% | F43: =VLOOKUP(A43,[1]percentages_after!$A:$D,4,FALSE)+VLOOKUP(A43,[1]percentages_after!$A:$E,5,FALSE) -> 100% | G43: -0%
A44: Senegal* | B44: LM | C44: =VLOOKUP(A44,[1]all_after!$A:$G,7,FALSE) -> 12,065 | D44: 98% | E44: =VLOOKUP(A44,[1]percentages_after!$A:$C,3,FALSE) -> 9% | F44: =VLOOKUP(A44,[1]percentages_after!$A:$D,4,FALSE)+VLOOKUP(A44,[1]percentages_after!$A:$E,5,FALSE) -> 89% | G44: 2%
A45: Seychelles* | B45: H | C45: =VLOOKUP(A45,[1]all_after!$A:$G,7,FALSE) -> 2,112 | D45: 93% | E45: =VLOOKUP(A45,[1]percentages_after!$A:$C,3,FALSE) -> 89% | F45: =VLOOKUP(A45,[1]percentages_after!$A:$D,4,FALSE)+VLOOKUP(A45,[1]percentages_after!$A:$E,5,FALSE) -> 4% | G45: 7%
A46: Sierra Leone* | B46: L | C46: =VLOOKUP(A46,[1]all_after!$A:$G,7,FALSE) -> 987 | D46: 96% | E46: =VLOOKUP(A46,[1]percentages_after!$A:$C,3,FALSE) -> 4% | F46: =VLOOKUP(A46,[1]percentages_after!$A:$D,4,FALSE)+VLOOKUP(A46,[1]percentages_after!$A:$E,5,FALSE) -> 92% | G46: 4%
A47: South Africa* | B47: UM | C47: =VLOOKUP(A47,[1]all_after!$A:$G,7,FALSE) -> 111,306 | D47: 89% | E47: =VLOOKUP(A47,[1]percentages_after!$A:$C,3,FALSE) -> 44% | F47: =VLOOKUP(A47,[1]percentages_after!$A:$D,4,FALSE)+VLOOKUP(A47,[1]percentages_after!$A:$E,5,FALSE) -> 45% | G47: 11%
A48: Sudan* | B48: L | C48: =VLOOKUP(A48,[1]all_after!$A:$G,7,FALSE) -> 10,484 | D48: 97% | E48: =VLOOKUP(A48,[1]percentages_after!$A:$C,3,FALSE) -> 11% | F48: =VLOOKUP(A48,[1]percentages_after!$A:$D,4,FALSE)+VLOOKUP(A48,[1]percentages_after!$A:$E,5,FALSE) -> 86% | G48: 3%
A49: Tanzania* | B49: LM | C49: =VLOOKUP(A49,[1]all_after!$A:$G,7,FALSE) -> 15,653 | D49: 95% | E49: =VLOOKUP(A49,[1]percentages_after!$A:$C,3,FALSE) -> 46% | F49: =VLOOKUP(A49,[1]percentages_after!$A:$D,4,FALSE)+VLOOKUP(A49,[1]percentages_after!$A:$E,5,FALSE) -> 48% | G49: 5%
A50: The Gambia* | B50: L | C50: =VLOOKUP(A50,[1]all_after!$A:$G,7,FALSE) -> 708 | D50: 83% | E50: =VLOOKUP(A50,[1]percentages_after!$A:$C,3,FALSE) -> 2% | F50: =VLOOKUP(A50,[1]percentages_after!$A:$D,4,FALSE)+VLOOKUP(A50,[1]percentages_after!$A:$E,5,FALSE) -> 81% | G50: 17%
A51: Togo* | B51: L | C51: =VLOOKUP(A51,[1]all_after!$A:$G,7,FALSE) -> 2,791 | D51: 91% | E51: =VLOOKUP(A51,[1]percentages_after!$A:$C,3,FALSE) -> 7% | F51: =VLOOKUP(A51,[1]percentages_after!$A:$D,4,FALSE)+VLOOKUP(A51,[1]percentages_after!$A:$E,5,FALSE) -> 84% | G51: 9%
A52: Tunisia* | B52: LM | C52: =VLOOKUP(A52,[1]all_after!$A:$G,7,FALSE) -> 25,990 | D52: 95% | E52: =VLOOKUP(A52,[1]percentages_after!$A:$C,3,FALSE) -> 37% | F52: =VLOOKUP(A52,[1]percentages_after!$A:$D,4,FALSE)+VLOOKUP(A52,[1]percentages_after!$A:$E,5,FALSE) -> 58% | G52: 5%
A53: Uganda* | B53: L | C53: =VLOOKUP(A53,[1]all_after!$A:$G,7,FALSE) -> 9,086 | D53: 80% | E53: =VLOOKUP(A53,[1]percentages_after!$A:$C,3,FALSE) -> 39% | F53: =VLOOKUP(A53,[1]percentages_after!$A:$D,4,FALSE)+VLOOKUP(A53,[1]percentages_after!$A:$E,5,FALSE) -> 41% | G53: 20%
A54: Zambia* | B54: LM | C54: =VLOOKUP(A54,[1]all_after!$A:$G,7,FALSE) -> 9,004 | D54: 100% | E54: =VLOOKUP(A54,[1]percentages_after!$A:$C,3,FALSE) -> 40% | F54: =VLOOKUP(A54,[1]percentages_after!$A:$D,4,FALSE)+VLOOKUP(A54,[1]percentages_after!$A:$E,5,FALSE) -> 60% | G54: 0%
A55: Zimbabwe* | B55: LM | C55: =VLOOKUP(A55,[1]all_after!$A:$G,7,FALSE) -> 8,604 | D55: 68% | E55: =VLOOKUP(A55,[1]percentages_after!$A:$C,3,FALSE) -> 19% | F55: =VLOOKUP(A55,[1]percentages_after!$A:$D,4,FALSE)+VLOOKUP(A55,[1]percentages_after!$A:$E,5,FALSE) -> 49% | G55: 32%
A56: Central Asia | C56: 94,166 | D56: 78% | E56: 30% | F56: 48% | G56: 22%
A57: Kazakhstan* | B57: UM | C57: =VLOOKUP(A57,[1]all_after!$A:$G,7,FALSE) -> 50,934 | D57: =SUM(E57:F57) -> 59% | E57: =VLOOKUP(A57,[1]percentages_after!$A:$C,3,FALSE) -> 22% | F57: =VLOOKUP(A57,[1]percentages_after!$A:$D,4,FALSE)+VLOOKUP(A57,[1]percentages_after!$A:$E,5,FALSE) -> 37% | G57: =1-D57 -> 41%
A58: Kyrgyz Republic* | B58: LM | C58: =VLOOKUP(A58,[1]all_after!$A:$G,7,FALSE) -> 9,803 | D58: 100% | E58: =VLOOKUP(A58,[1]percentages_after!$A:$C,3,FALSE) -> 23% | F58: =VLOOKUP(A58,[1]percentages_after!$A:$D,4,FALSE)+VLOOKUP(A58,[1]percentages_after!$A:$E,5,FALSE) -> 76% | G58: =1-D58 -> 0%
A59: Tajikistan* | B59: LM | C59: =VLOOKUP(A59,[1]all_after!$A:$G,7,FALSE) -> 5,165 | D59: 100% | E59: =VLOOKUP(A59,[1]percentages_after!$A:$C,3,FALSE) -> 8% | F59: =VLOOKUP(A59,[1]percentages_after!$A:$D,4,FALSE)+VLOOKUP(A59,[1]percentages_after!$A:$E,5,FALSE) -> 92% | G59: =1-D59 -> 0%
A60: Uzbekistan* | B60: LM | C60: =VLOOKUP(A60,[1]all_after!$A:$G,7,FALSE) -> 28,264 | D60: 100% | E60: =VLOOKUP(A60,[1]percentages_after!$A:$C,3,FALSE) -> 52% | F60: =VLOOKUP(A60,[1]percentages_after!$A:$D,4,FALSE)+VLOOKUP(A60,[1]percentages_after!$A:$E,5,FALSE) -> 48% | G60: =1-D60 -> -0%
A61: East Asia | C61: 7,140,443 | D61: 86% | E61: 63% | F61: 23% | G61: 14%
A62: Brunei Darussalam* | B62: H | C62: =VLOOKUP(A62,[1]all_after!$A:$G,7,FALSE) -> 9,184 | D62: =SUM(E62:F62) -> 99% | E62: =VLOOKUP(A62,[1]percentages_after!$A:$C,3,FALSE) -> 99% | F62: =VLOOKUP(A62,[1]percentages_after!$A:$D,4,FALSE)+VLOOKUP(A62,[1]percentages_after!$A:$E,5,FALSE) -> 0% | G62: =1-D62 -> 1%
A63: Cambodia* | B63: LM | C63: =VLOOKUP(A63,[1]all_after!$A:$G,7,FALSE) -> 29,938 | D63: 60% | E63: =VLOOKUP(A63,[1]percentages_after!$A:$C,3,FALSE) -> 30% | F63: =VLOOKUP(A63,[1]percentages_after!$A:$D,4,FALSE)+VLOOKUP(A63,[1]percentages_after!$A:$E,5,FALSE) -> 30% | G63: 40%
A64: China* | B64: UM | C64: =VLOOKUP(A64,[1]all_after!$A:$G,7,FALSE) -> 2,585,784 | D64: 89% | E64: =VLOOKUP(A64,[1]percentages_after!$A:$C,3,FALSE) -> 54% | F64: =VLOOKUP(A64,[1]percentages_after!$A:$D,4,FALSE)+VLOOKUP(A64,[1]percentages_after!$A:$E,5,FALSE) -> 35% | G64: 11%
A65: Chinese Taipei* | B65: H | C65: =VLOOKUP(A65,[1]all_after!$A:$G,7,FALSE) -> 403,932 | D65: 97% | E65: =VLOOKUP(A65,[1]percentages_after!$A:$C,3,FALSE) -> 72% | F65: =VLOOKUP(A65,[1]percentages_after!$A:$D,4,FALSE)+VLOOKUP(A65,[1]percentages_after!$A:$E,5,FALSE) -> 25% | G65: 3%
A66: Hong Kong, China* | B66: H | C66: =VLOOKUP(A66,[1]all_after!$A:$G,7,FALSE) -> 667,081 | D66: 100% | E66: =VLOOKUP(A66,[1]percentages_after!$A:$C,3,FALSE) -> 100% | F66: =VLOOKUP(A66,[1]percentages_after!$A:$D,4,FALSE)+VLOOKUP(A66,[1]percentages_after!$A:$E,5,FALSE) -> 0% | G66: 0%
A67: Indonesia* | B67: UM | C67: =VLOOKUP(A67,[1]all_after!$A:$G,7,FALSE) -> 237,384 | D67: 61% | E67: =VLOOKUP(A67,[1]percentages_after!$A:$C,3,FALSE) -> 32% | F67: =VLOOKUP(A67,[1]percentages_after!$A:$D,4,FALSE)+VLOOKUP(A67,[1]percentages_after!$A:$E,5,FALSE) -> 30% | G67: 39%
A68: Japan | B68: H | C68: =VLOOKUP(A68,[1]all_after!$A:$G,7,FALSE) -> 853,446 | D68: 90% | E68: =VLOOKUP(A68,[1]percentages_after!$A:$C,3,FALSE) -> 83% | F68: =VLOOKUP(A68,[1]percentages_after!$A:$D,4,FALSE)+VLOOKUP(A68,[1]percentages_after!$A:$E,5,FALSE) -> 8% | G68: 10%
A69: Korea, Republic of* | B69: H | C69: =VLOOKUP(A69,[1]all_after!$A:$G,7,FALSE) -> 731,370 | D69: 69% | E69: =VLOOKUP(A69,[1]percentages_after!$A:$C,3,FALSE) -> 34% | F69: =VLOOKUP(A69,[1]percentages_after!$A:$D,4,FALSE)+VLOOKUP(A69,[1]percentages_after!$A:$E,5,FALSE) -> 35% | G69: 31%
A70: Lao People's Democratic Republic* | B70: LM | C70: =VLOOKUP(A70,[1]all_after!$A:$G,7,FALSE) -> 6,808 | D70: 37% | E70: =VLOOKUP(A70,[1]percentages_after!$A:$C,3,FALSE) -> 2% | F70: =VLOOKUP(A70,[1]percentages_after!$A:$D,4,FALSE)+VLOOKUP(A70,[1]percentages_after!$A:$E,5,FALSE) -> 35% | G70: 63%
A71: Macao, China* | B71: H | C71: =VLOOKUP(A71,[1]all_after!$A:$G,7,FALSE) -> 16,942 | D71: 100% | E71: =VLOOKUP(A71,[1]percentages_after!$A:$C,3,FALSE) -> 100% | F71: =VLOOKUP(A71,[1]percentages_after!$A:$D,4,FALSE)+VLOOKUP(A71,[1]percentages_after!$A:$E,5,FALSE) -> 0% | G71: 0%
A72: Malaysia* | B72: UM | C72: =VLOOKUP(A72,[1]all_after!$A:$G,7,FALSE) -> 293,935 | D72: 85% | E72: =VLOOKUP(A72,[1]percentages_after!$A:$C,3,FALSE) -> 69% | F72: =VLOOKUP(A72,[1]percentages_after!$A:$D,4,FALSE)+VLOOKUP(A72,[1]percentages_after!$A:$E,5,FALSE) -> 16% | G72: 15%
A73: Mongolia* | B73: LM | C73: =VLOOKUP(A73,[1]all_after!$A:$G,7,FALSE) -> 8,704 | D73: 83% | E73: =VLOOKUP(A73,[1]percentages_after!$A:$C,3,FALSE) -> 2% | F73: =VLOOKUP(A73,[1]percentages_after!$A:$D,4,FALSE)+VLOOKUP(A73,[1]percentages_after!$A:$E,5,FALSE) -> 81% | G73: 17%
A74: Myanmar* | B74: LM | C74: =VLOOKUP(A74,[1]all_after!$A:$G,7,FALSE) -> 17,403 | D74: 53% | E74: =VLOOKUP(A74,[1]percentages_after!$A:$C,3,FALSE) -> 6% | F74: =VLOOKUP(A74,[1]percentages_after!$A:$D,4,FALSE)+VLOOKUP(A74,[1]percentages_after!$A:$E,5,FALSE) -> 47% | G74: 47%
A75: Philippines* | B75: LM | C75: =VLOOKUP(A75,[1]all_after!$A:$G,7,FALSE) -> 145,890 | D75: 64% | E75: =VLOOKUP(A75,[1]percentages_after!$A:$C,3,FALSE) -> 42% | F75: =VLOOKUP(A75,[1]percentages_after!$A:$D,4,FALSE)+VLOOKUP(A75,[1]percentages_after!$A:$E,5,FALSE) -> 22% | G75: 36%
A76: Singapore* | B76: H | C76: =VLOOKUP(A76,[1]all_after!$A:$G,7,FALSE) -> 475,413 | D76: 100% | E76: =VLOOKUP(A76,[1]percentages_after!$A:$C,3,FALSE) -> 99% | F76: =VLOOKUP(A76,[1]percentages_after!$A:$D,4,FALSE)+VLOOKUP(A76,[1]percentages_after!$A:$E,5,FALSE) -> 1% | G76: 0%
A77: Thailand* | B77: UM | C77: =VLOOKUP(A77,[1]all_after!$A:$G,7,FALSE) -> 297,520 | D77: 73% | E77: =VLOOKUP(A77,[1]percentages_after!$A:$C,3,FALSE) -> 54% | F77: =VLOOKUP(A77,[1]percentages_after!$A:$D,4,FALSE)+VLOOKUP(A77,[1]percentages_after!$A:$E,5,FALSE) -> 20% | G77: 27%
A78: Timor-Leste* | B78: LM | C78: =VLOOKUP(A78,[1]all_after!$A:$G,7,FALSE) -> 921 | D78: 100% | E78: =VLOOKUP(A78,[1]percentages_after!$A:$C,3,FALSE) -> 0% | F78: =VLOOKUP(A78,[1]percentages_after!$A:$D,4,FALSE)+VLOOKUP(A78,[1]percentages_after!$A:$E,5,FALSE) -> 100% | G78: -0%
A79: Viet Nam* | B79: LM | C79: =VLOOKUP(A79,[1]all_after!$A:$G,7,FALSE) -> 358,788 | D79: 65% | E79: =VLOOKUP(A79,[1]percentages_after!$A:$C,3,FALSE) -> 44% | F79: =VLOOKUP(A79,[1]percentages_after!$A:$D,4,FALSE)+VLOOKUP(A79,[1]percentages_after!$A:$E,5,FALSE) -> 21% | G79: 35%
A80: Europe | C80: 4,939,819 | D80: 81% | E80: 54% | F80: 27% | G80: 19%
A81: Albania* | B81: UM | C81: =VLOOKUP(A81,[1]all_after!$A:$G,7,FALSE) -> 8,424 | D81: =SUM(E81:F81) -> 77% | E81: =VLOOKUP(A81,[1]percentages_after!$A:$C,3,FALSE) -> 55% | F81: =VLOOKUP(A81,[1]percentages_after!$A:$D,4,FALSE)+VLOOKUP(A81,[1]percentages_after!$A:$E,5,FALSE) -> 22% | G81: =1-D81 -> 23%
A82: Andorra* | B82: H | C82: =VLOOKUP(A82,[1]all_after!$A:$G,7,FALSE) -> 1,864 | D82: 100% | E82: =VLOOKUP(A82,[1]percentages_after!$A:$C,3,FALSE) -> 0% | F82: =VLOOKUP(A82,[1]percentages_after!$A:$D,4,FALSE)+VLOOKUP(A82,[1]percentages_after!$A:$E,5,FALSE) -> 100% | G82: 0%
A83: Armenia* | B83: UM | C83: =VLOOKUP(A83,[1]all_after!$A:$G,7,FALSE) -> 8,662 | D83: 69% | E83: =VLOOKUP(A83,[1]percentages_after!$A:$C,3,FALSE) -> 23% | F83: =VLOOKUP(A83,[1]percentages_after!$A:$D,4,FALSE)+VLOOKUP(A83,[1]percentages_after!$A:$E,5,FALSE) -> 46% | G83: 31%
A84: Azerbaijan* | B84: UM | C84: =VLOOKUP(A84,[1]all_after!$A:$G,7,FALSE) -> 14,527 | D84: 89% | E84: =VLOOKUP(A84,[1]percentages_after!$A:$C,3,FALSE) -> 28% | F84: =VLOOKUP(A84,[1]percentages_after!$A:$D,4,FALSE)+VLOOKUP(A84,[1]percentages_after!$A:$E,5,FALSE) -> 61% | G84: 11%
A85: Belarus* | B85: UM | C85: =VLOOKUP(A85,[1]all_after!$A:$G,7,FALSE) -> 41,811 | D85: 98% | E85: =VLOOKUP(A85,[1]percentages_after!$A:$C,3,FALSE) -> 13% | F85: =VLOOKUP(A85,[1]percentages_after!$A:$D,4,FALSE)+VLOOKUP(A85,[1]percentages_after!$A:$E,5,FALSE) -> 86% | G85: 2%
A86: Bosnia and Herzegovina* | B86: UM | C86: =VLOOKUP(A86,[1]all_after!$A:$G,7,FALSE) -> 15,380 | D86: 62% | E86: =VLOOKUP(A86,[1]percentages_after!$A:$C,3,FALSE) -> 12% | F86: =VLOOKUP(A86,[1]percentages_after!$A:$D,4,FALSE)+VLOOKUP(A86,[1]percentages_after!$A:$E,5,FALSE) -> 50% | G86: 38%
A87: European Union | B87: H | C87: =VLOOKUP(A87,[1]all_after!$A:$G,7,FALSE) -> 2,806,322 | D87: 84% | E87: =VLOOKUP(A87,[1]percentages_after!$A:$C,3,FALSE) -> 60% | F87: =VLOOKUP(A87,[1]percentages_after!$A:$D,4,FALSE)+VLOOKUP(A87,[1]percentages_after!$A:$E,5,FALSE) -> 23% | G87: 16%
A88: Georgia* | B88: UM | C88: =VLOOKUP(A88,[1]all_after!$A:$G,7,FALSE) -> 13,548 | D88: 86% | E88: =VLOOKUP(A88,[1]percentages_after!$A:$C,3,FALSE) -> 72% | F88: =VLOOKUP(A88,[1]percentages_after!$A:$D,4,FALSE)+VLOOKUP(A88,[1]percentages_after!$A:$E,5,FALSE) -> 14% | G88: 14%
A89: Greenland* | B89: H | C89: =VLOOKUP(A89,[1]all_after!$A:$G,7,FALSE) -> 829 | D89: 100% | E89: =VLOOKUP(A89,[1]percentages_after!$A:$C,3,FALSE) -> 0% | F89: =VLOOKUP(A89,[1]percentages_after!$A:$D,4,FALSE)+VLOOKUP(A89,[1]percentages_after!$A:$E,5,FALSE) -> 100% | G89: 0%
A90: Iceland | B90: H | C90: =VLOOKUP(A90,[1]all_after!$A:$G,7,FALSE) -> 9,288 | D90: 98% | E90: =VLOOKUP(A90,[1]percentages_after!$A:$C,3,FALSE) -> 95% | F90: =VLOOKUP(A90,[1]percentages_after!$A:$D,4,FALSE)+VLOOKUP(A90,[1]percentages_after!$A:$E,5,FALSE) -> 2% | G90: 2%
A91: Moldova, Republic of* | B91: UM | C91: =VLOOKUP(A91,[1]all_after!$A:$G,7,FALSE) -> 9,219 | D91: 74% | E91: =VLOOKUP(A91,[1]percentages_after!$A:$C,3,FALSE) -> 56% | F91: =VLOOKUP(A91,[1]percentages_after!$A:$D,4,FALSE)+VLOOKUP(A91,[1]percentages_after!$A:$E,5,FALSE) -> 19% | G91: 26%
A92: Montenegro* | B92: UM | C92: =VLOOKUP(A92,[1]all_after!$A:$G,7,FALSE) -> 3,721 | D92: 60% | E92: =VLOOKUP(A92,[1]percentages_after!$A:$C,3,FALSE) -> 36% | F92: =VLOOKUP(A92,[1]percentages_after!$A:$D,4,FALSE)+VLOOKUP(A92,[1]percentages_after!$A:$E,5,FALSE) -> 24% | G92: 40%
A93: North Macedonia* | B93: UM | C93: =VLOOKUP(A93,[1]all_after!$A:$G,7,FALSE) -> 12,757 | D93: 74% | E93: =VLOOKUP(A93,[1]percentages_after!$A:$C,3,FALSE) -> 44% | F93: =VLOOKUP(A93,[1]percentages_after!$A:$D,4,FALSE)+VLOOKUP(A93,[1]percentages_after!$A:$E,5,FALSE) -> 30% | G93: 26%
A94: Norway | B94: H | C94: =VLOOKUP(A94,[1]all_after!$A:$G,7,FALSE) -> 105,735 | D94: 97% | E94: =VLOOKUP(A94,[1]percentages_after!$A:$C,3,FALSE) -> 92% | F94: =VLOOKUP(A94,[1]percentages_after!$A:$D,4,FALSE)+VLOOKUP(A94,[1]percentages_after!$A:$E,5,FALSE) -> 5% | G94: 3%
A95: Russian Federation* | B95: UM | C95: =VLOOKUP(A95,[1]all_after!$A:$G,7,FALSE) -> 293,485 | D95: 85% | E95: =VLOOKUP(A95,[1]percentages_after!$A:$C,3,FALSE) -> 23% | F95: =VLOOKUP(A95,[1]percentages_after!$A:$D,4,FALSE)+VLOOKUP(A95,[1]percentages_after!$A:$E,5,FALSE) -> 62% | G95: 15%
A96: Serbia* | B96: UM | C96: =VLOOKUP(A96,[1]all_after!$A:$G,7,FALSE) -> 41,144 | D96: 54% | E96: =VLOOKUP(A96,[1]percentages_after!$A:$C,3,FALSE) -> 1% | F96: =VLOOKUP(A96,[1]percentages_after!$A:$D,4,FALSE)+VLOOKUP(A96,[1]percentages_after!$A:$E,5,FALSE) -> 53% | G96: 46%
A97: Switzerland | B97: H | C97: =VLOOKUP(A97,[1]all_after!$A:$G,7,FALSE) -> 357,012 | D97: 80% | E97: =VLOOKUP(A97,[1]percentages_after!$A:$C,3,FALSE) -> 61% | F97: =VLOOKUP(A97,[1]percentages_after!$A:$D,4,FALSE)+VLOOKUP(A97,[1]percentages_after!$A:$E,5,FALSE) -> 19% | G97: 20%
A98: Türkiye* | B98: UM | C98: =VLOOKUP(A98,[1]all_after!$A:$G,7,FALSE) -> 363,753 | D98: 75% | E98: =VLOOKUP(A98,[1]percentages_after!$A:$C,3,FALSE) -> 31% | F98: =VLOOKUP(A98,[1]percentages_after!$A:$D,4,FALSE)+VLOOKUP(A98,[1]percentages_after!$A:$E,5,FALSE) -> 44% | G98: 25%
A99: Ukraine* | B99: LM | C99: =VLOOKUP(A99,[1]all_after!$A:$G,7,FALSE) -> 55,296 | D99: 75% | E99: =VLOOKUP(A99,[1]percentages_after!$A:$C,3,FALSE) -> 33% | F99: =VLOOKUP(A99,[1]percentages_after!$A:$D,4,FALSE)+VLOOKUP(A99,[1]percentages_after!$A:$E,5,FALSE) -> 42% | G99: 25%
A100: United Kingdom* | B100: H | C100: =VLOOKUP(A100,[1]all_after!$A:$G,7,FALSE) -> 771,120 | D100: 76% | E100: =VLOOKUP(A100,[1]percentages_after!$A:$C,3,FALSE) -> 57% | F100: =VLOOKUP(A100,[1]percentages_after!$A:$D,4,FALSE)+VLOOKUP(A100,[1]percentages_after!$A:$E,5,FALSE) -> 19% | G100: 24%
A101: UNMIK/Kosovo* | B101: UM | C101: =VLOOKUP(A101,[1]all_after!$A:$G,7,FALSE) -> 5,924 | D101: 100% | E101: =VLOOKUP(A101,[1]percentages_after!$A:$C,3,FALSE) -> 0% | F101: =VLOOKUP(A101,[1]percentages_after!$A:$D,4,FALSE)+VLOOKUP(A101,[1]percentages_after!$A:$E,5,FALSE) -> 100% | G101: 0%
A102: Middle East | C102: 940,053 | D102: 94% | E102: 30% | F102: 64% | G102: 6%
A103: Bahrain, Kingdom of* | B103: H | C103: =VLOOKUP(A103,[1]all_after!$A:$G,7,FALSE) -> 15,484 | D103: =SUM(E103:F103) -> 84% | E103: =VLOOKUP(A103,[1]percentages_after!$A:$C,3,FALSE) -> 16% | F103: =VLOOKUP(A103,[1]percentages_after!$A:$D,4,FALSE)+VLOOKUP(A103,[1]percentages_after!$A:$E,5,FALSE) -> 68% | G103: =1-D103 -> 16%
A104: Iran* | B104: LM | C104: =VLOOKUP(A104,[1]all_after!$A:$G,7,FALSE) -> 52,865 | D104: 100% | E104: =VLOOKUP(A104,[1]percentages_after!$A:$C,3,FALSE) -> 0% | F104: =VLOOKUP(A104,[1]percentages_after!$A:$D,4,FALSE)+VLOOKUP(A104,[1]percentages_after!$A:$E,5,FALSE) -> 100% | G104: 0%
A105: Israel* | B105: H | C105: =VLOOKUP(A105,[1]all_after!$A:$G,7,FALSE) -> 92,911 | D105: 82% | E105: =VLOOKUP(A105,[1]percentages_after!$A:$C,3,FALSE) -> 59% | F105: =VLOOKUP(A105,[1]percentages_after!$A:$D,4,FALSE)+VLOOKUP(A105,[1]percentages_after!$A:$E,5,FALSE) -> 24% | G105: 18%
A106: Jordan* | B106: LM | C106: =VLOOKUP(A106,[1]all_after!$A:$G,7,FALSE) -> 27,149 | D106: 86% | E106: =VLOOKUP(A106,[1]percentages_after!$A:$C,3,FALSE) -> 46% | F106: =VLOOKUP(A106,[1]percentages_after!$A:$D,4,FALSE)+VLOOKUP(A106,[1]percentages_after!$A:$E,5,FALSE) -> 40% | G106: 14%
A107: Kuwait, the State of* | B107: H | C107: =VLOOKUP(A107,[1]all_after!$A:$G,7,FALSE) -> 35,926 | D107: 85% | E107: =VLOOKUP(A107,[1]percentages_after!$A:$C,3,FALSE) -> 23% | F107: =VLOOKUP(A107,[1]percentages_after!$A:$D,4,FALSE)+VLOOKUP(A107,[1]percentages_after!$A:$E,5,FALSE) -> 62% | G107: 15%
A108: Lebanese Republic* | B108: LM | C108: =VLOOKUP(A108,[1]all_after!$A:$G,7,FALSE) -> 19,491 | D108: 100% | E108: =VLOOKUP(A108,[1]percentages_after!$A:$C,3,FALSE) -> 24% | F108: =VLOOKUP(A108,[1]percentages_after!$A:$D,4,FALSE)+VLOOKUP(A108,[1]percentages_after!$A:$E,5,FALSE) -> 76% | G108: -0%
A109: Oman* | B109: H | C109: =VLOOKUP(A109,[1]all_after!$A:$G,7,FALSE) -> 38,573 | D109: 71% | E109: =VLOOKUP(A109,[1]percentages_after!$A:$C,3,FALSE) -> 14% | F109: =VLOOKUP(A109,[1]percentages_after!$A:$D,4,FALSE)+VLOOKUP(A109,[1]percentages_after!$A:$E,5,FALSE) -> 57% | G109: 29%
A110: Palestine* | B110: UM | C110: =VLOOKUP(A110,[1]all_after!$A:$G,7,FALSE) -> 9,089 | D110: 100% | E110: =VLOOKUP(A110,[1]percentages_after!$A:$C,3,FALSE) -> 0% | F110: =VLOOKUP(A110,[1]percentages_after!$A:$D,4,FALSE)+VLOOKUP(A110,[1]percentages_after!$A:$E,5,FALSE) -> 100% | G110: 0%
A111: Qatar* | B111: H | C111: =VLOOKUP(A111,[1]all_after!$A:$G,7,FALSE) -> 33,479 | D111: 100% | E111: =VLOOKUP(A111,[1]percentages_after!$A:$C,3,FALSE) -> 16% | F111: =VLOOKUP(A111,[1]percentages_after!$A:$D,4,FALSE)+VLOOKUP(A111,[1]percentages_after!$A:$E,5,FALSE) -> 84% | G111: 0%
A112: Saudi Arabia, Kingdom of* | B112: H | C112: =VLOOKUP(A112,[1]all_after!$A:$G,7,FALSE) -> 189,877 | D112: 100% | E112: =VLOOKUP(A112,[1]percentages_after!$A:$C,3,FALSE) -> 26% | F112: =VLOOKUP(A112,[1]percentages_after!$A:$D,4,FALSE)+VLOOKUP(A112,[1]percentages_after!$A:$E,5,FALSE) -> 74% | G112: -0%
A113: United Arab Emirates* | B113: H | C113: =VLOOKUP(A113,[1]all_after!$A:$G,7,FALSE) -> 420,493 | D113: 96% | E113: =VLOOKUP(A113,[1]percentages_after!$A:$C,3,FALSE) -> 32% | F113: =VLOOKUP(A113,[1]percentages_after!$A:$D,4,FALSE)+VLOOKUP(A113,[1]percentages_after!$A:$E,5,FALSE) -> 64% | G113: 4%
A114: Yemen* | B114: L | C114: =VLOOKUP(A114,[1]all_after!$A:$G,7,FALSE) -> 4,716 | D114: 100% | E114: =VLOOKUP(A114,[1]percentages_after!$A:$C,3,FALSE) -> 15% | F114: =VLOOKUP(A114,[1]percentages_after!$A:$D,4,FALSE)+VLOOKUP(A114,[1]percentages_after!$A:$E,5,FALSE) -> 85% | G114: -0%
A115: North America | C115: 4,225,353 | D115: 81% | E115: 52% | F115: 29% | G115: 19%
A116: Bermuda* | B116: H | C116: =VLOOKUP(A116,[1]all_after!$A:$G,7,FALSE) -> 1,192 | D116: =SUM(E116:F116) -> 100% | E116: =VLOOKUP(A116,[1]percentages_after!$A:$C,3,FALSE) -> 0% | F116: =VLOOKUP(A116,[1]percentages_after!$A:$D,4,FALSE)+VLOOKUP(A116,[1]percentages_after!$A:$E,5,FALSE) -> 100% | G116: =1-D116 -> -0%
A117: Canada | B117: H | C117: =VLOOKUP(A117,[1]all_after!$A:$G,7,FALSE) -> 514,287 | D117: 79% | E117: =VLOOKUP(A117,[1]percentages_after!$A:$C,3,FALSE) -> 70% | F117: =VLOOKUP(A117,[1]percentages_after!$A:$D,4,FALSE)+VLOOKUP(A117,[1]percentages_after!$A:$E,5,FALSE) -> 9% | G117: =1-D117 -> 21%
A118: Mexico* | B118: UM | C118: =VLOOKUP(A118,[1]all_after!$A:$G,7,FALSE) -> 604,615 | D118: 78% | E118: =VLOOKUP(A118,[1]percentages_after!$A:$C,3,FALSE) -> 40% | F118: =VLOOKUP(A118,[1]percentages_after!$A:$D,4,FALSE)+VLOOKUP(A118,[1]percentages_after!$A:$E,5,FALSE) -> 38% | G118: =1-D118 -> 22%
A119: United States of America | B119: H | C119: =VLOOKUP(A119,[1]all_after!$A:$G,7,FALSE) -> 3,105,259 | D119: 82% | E119: =VLOOKUP(A119,[1]percentages_after!$A:$C,3,FALSE) -> 52% | F119: =VLOOKUP(A119,[1]percentages_after!$A:$D,4,FALSE)+VLOOKUP(A119,[1]percentages_after!$A:$E,5,FALSE) -> 31% | G119: =1-D119 -> 18%
A120: Oceania | C120: 353,295 | D120: 64% | E120: 48% | F120: 16% | G120: 36%
A121: Australia | B121: H | C121: =VLOOKUP(A121,[1]all_after!$A:$G,7,FALSE) -> 287,232 | D121: =SUM(E121:F121) -> 62% | E121: =VLOOKUP(A121,[1]percentages_after!$A:$C,3,FALSE) -> 50% | F121: =VLOOKUP(A121,[1]percentages_after!$A:$D,4,FALSE)+VLOOKUP(A121,[1]percentages_after!$A:$E,5,FALSE) -> 12% | G121: =1-D121 -> 38%
A122: Fiji* | B122: UM | C122: =VLOOKUP(A122,[1]all_after!$A:$G,7,FALSE) -> 2,997 | D122: 99% | E122: =VLOOKUP(A122,[1]percentages_after!$A:$C,3,FALSE) -> 23% | F122: =VLOOKUP(A122,[1]percentages_after!$A:$D,4,FALSE)+VLOOKUP(A122,[1]percentages_after!$A:$E,5,FALSE) -> 77% | G122: 1%
A123: French Polynesia* | B123: H | C123: =VLOOKUP(A123,[1]all_after!$A:$G,7,FALSE) -> 2,220 | D123: 100% | E123: =VLOOKUP(A123,[1]percentages_after!$A:$C,3,FALSE) -> 0% | F123: =VLOOKUP(A123,[1]percentages_after!$A:$D,4,FALSE)+VLOOKUP(A123,[1]percentages_after!$A:$E,5,FALSE) -> 100% | G123: -0%
A124: Kiribati* | B124: LM | C124: =VLOOKUP(A124,[1]all_after!$A:$G,7,FALSE) -> 174 | D124: 100% | E124: =VLOOKUP(A124,[1]percentages_after!$A:$C,3,FALSE) -> 0% | F124: =VLOOKUP(A124,[1]percentages_after!$A:$D,4,FALSE)+VLOOKUP(A124,[1]percentages_after!$A:$E,5,FALSE) -> 100% | G124: 0%
A125: New Zealand* | B125: H | C125: =VLOOKUP(A125,[1]all_after!$A:$G,7,FALSE) -> 54,800 | D125: 66% | E125: =VLOOKUP(A125,[1]percentages_after!$A:$C,3,FALSE) -> 38% | F125: =VLOOKUP(A125,[1]percentages_after!$A:$D,4,FALSE)+VLOOKUP(A125,[1]percentages_after!$A:$E,5,FALSE) -> 28% | G125: 34%
A126: Palau* | B126: UM | C126: =VLOOKUP(A126,[1]all_after!$A:$G,7,FALSE) -> 154 | D126: 100% | E126: =VLOOKUP(A126,[1]percentages_after!$A:$C,3,FALSE) -> 0% | F126: =VLOOKUP(A126,[1]percentages_after!$A:$D,4,FALSE)+VLOOKUP(A126,[1]percentages_after!$A:$E,5,FALSE) -> 100% | G126: -0%
A127: Papua New Guinea* | B127: LM | C127: =VLOOKUP(A127,[1]all_after!$A:$G,7,FALSE) -> 4,500 | D127: 100% | E127: =VLOOKUP(A127,[1]percentages_after!$A:$C,3,FALSE) -> 72% | F127: =VLOOKUP(A127,[1]percentages_after!$A:$D,4,FALSE)+VLOOKUP(A127,[1]percentages_after!$A:$E,5,FALSE) -> 28% | G127: 0%
A128: Samoa* | B128: LM | C128: =VLOOKUP(A128,[1]all_after!$A:$G,7,FALSE) -> 368 | D128: 94% | E128: =VLOOKUP(A128,[1]percentages_after!$A:$C,3,FALSE) -> 15% | F128: =VLOOKUP(A128,[1]percentages_after!$A:$D,4,FALSE)+VLOOKUP(A128,[1]percentages_after!$A:$E,5,FALSE) -> 79% | G128: 6%
A129: Solomon Islands* | B129: LM | C129: =VLOOKUP(A129,[1]all_after!$A:$G,7,FALSE) -> 601 | D129: 100% | E129: =VLOOKUP(A129,[1]percentages_after!$A:$C,3,FALSE) -> 14% | F129: =VLOOKUP(A129,[1]percentages_after!$A:$D,4,FALSE)+VLOOKUP(A129,[1]percentages_after!$A:$E,5,FALSE) -> 86% | G129: -0%
A130: Tonga* | B130: UM | C130: =VLOOKUP(A130,[1]all_after!$A:$G,7,FALSE) -> 247 | D130: 94% | E130: =VLOOKUP(A130,[1]percentages_after!$A:$C,3,FALSE) -> 53% | F130: =VLOOKUP(A130,[1]percentages_after!$A:$D,4,FALSE)+VLOOKUP(A130,[1]percentages_after!$A:$E,5,FALSE) -> 41% | G130: 6%
A131: South and Central America and the Caribbean | C131: 838,650 | D131: 77% | E131: 30% | F131: 46% | G131: 23%
A132: Antigua and Barbuda* | B132: H | C132: =VLOOKUP(A132,[1]all_after!$A:$G,7,FALSE) -> 628 | D132: =SUM(E132:F132) -> 86% | E132: =VLOOKUP(A132,[1]percentages_after!$A:$C,3,FALSE) -> 3% | F132: =VLOOKUP(A132,[1]percentages_after!$A:$D,4,FALSE)+VLOOKUP(A132,[1]percentages_after!$A:$E,5,FALSE) -> 84% | G132: =1-D132 -> 14%
A133: Argentina* | B133: UM | C133: =VLOOKUP(A133,[1]all_after!$A:$G,7,FALSE) -> 81,475 | D133: 79% | E133: =VLOOKUP(A133,[1]percentages_after!$A:$C,3,FALSE) -> 15% | F133: =VLOOKUP(A133,[1]percentages_after!$A:$D,4,FALSE)+VLOOKUP(A133,[1]percentages_after!$A:$E,5,FALSE) -> 64% | G133: 21%
A134: Aruba, Netherlands with respect to* | B134: Not classified | C134: =VLOOKUP(A134,[1]all_after!$A:$G,7,FALSE) -> 1,473 | D134: 100% | E134: =VLOOKUP(A134,[1]percentages_after!$A:$C,3,FALSE) -> 0% | F134: =VLOOKUP(A134,[1]percentages_after!$A:$D,4,FALSE)+VLOOKUP(A134,[1]percentages_after!$A:$E,5,FALSE) -> 100% | G134: -0%
A135: Bahamas* | B135: H | C135: =VLOOKUP(A135,[1]all_after!$A:$G,7,FALSE) -> 3,758 | D135: 100% | E135: =VLOOKUP(A135,[1]percentages_after!$A:$C,3,FALSE) -> 0% | F135: =VLOOKUP(A135,[1]percentages_after!$A:$D,4,FALSE)+VLOOKUP(A135,[1]percentages_after!$A:$E,5,FALSE) -> 100% | G135: -0%
A136: Barbados* | B136: H | C136: =VLOOKUP(A136,[1]all_after!$A:$G,7,FALSE) -> 2,072 | D136: 89% | E136: =VLOOKUP(A136,[1]percentages_after!$A:$C,3,FALSE) -> 5% | F136: =VLOOKUP(A136,[1]percentages_after!$A:$D,4,FALSE)+VLOOKUP(A136,[1]percentages_after!$A:$E,5,FALSE) -> 84% | G136: 11%
A137: Belize* | B137: UM | C137: =VLOOKUP(A137,[1]all_after!$A:$G,7,FALSE) -> 1,381 | D137: 97% | E137: =VLOOKUP(A137,[1]percentages_after!$A:$C,3,FALSE) -> 15% | F137: =VLOOKUP(A137,[1]percentages_after!$A:$D,4,FALSE)+VLOOKUP(A137,[1]percentages_after!$A:$E,5,FALSE) -> 82% | G137: 3%
A138: Bolivia, Plurinational State of* | B138: LM | C138: =VLOOKUP(A138,[1]all_after!$A:$G,7,FALSE) -> 13,049 | D138: 69% | E138: =VLOOKUP(A138,[1]percentages_after!$A:$C,3,FALSE) -> 8% | F138: =VLOOKUP(A138,[1]percentages_after!$A:$D,4,FALSE)+VLOOKUP(A138,[1]percentages_after!$A:$E,5,FALSE) -> 62% | G138: 31%
A139: Brazil* | B139: UM | C139: =VLOOKUP(A139,[1]all_after!$A:$G,7,FALSE) -> 272,439 | D139: 89% | E139: =VLOOKUP(A139,[1]percentages_after!$A:$C,3,FALSE) -> 30% | F139: =VLOOKUP(A139,[1]percentages_after!$A:$D,4,FALSE)+VLOOKUP(A139,[1]percentages_after!$A:$E,5,FALSE) -> 59% | G139: 11%
A140: Cayman Islands* | B140: H | C140: =VLOOKUP(A140,[1]all_after!$A:$G,7,FALSE) -> 1,538 | D140: 100% | E140: =VLOOKUP(A140,[1]percentages_after!$A:$C,3,FALSE) -> 0% | F140: =VLOOKUP(A140,[1]percentages_after!$A:$D,4,FALSE)+VLOOKUP(A140,[1]percentages_after!$A:$E,5,FALSE) -> 100% | G140: -0%
A141: Chile* | B141: H | C141: =VLOOKUP(A141,[1]all_after!$A:$G,7,FALSE) -> 97,646 | D141: 32% | E141: =VLOOKUP(A141,[1]percentages_after!$A:$C,3,FALSE) -> 0% | F141: =VLOOKUP(A141,[1]percentages_after!$A:$D,4,FALSE)+VLOOKUP(A141,[1]percentages_after!$A:$E,5,FALSE) -> 32% | G141: 68%
A142: Colombia* | B142: UM | C142: =VLOOKUP(A142,[1]all_after!$A:$G,7,FALSE) -> 75,877 | D142: 79% | E142: =VLOOKUP(A142,[1]percentages_after!$A:$C,3,FALSE) -> 47% | F142: =VLOOKUP(A142,[1]percentages_after!$A:$D,4,FALSE)+VLOOKUP(A142,[1]percentages_after!$A:$E,5,FALSE) -> 31% | G142: 21%
A143: Costa Rica* | B143: UM | C143: =VLOOKUP(A143,[1]all_after!$A:$G,7,FALSE) -> 21,395 | D143: 68% | E143: =VLOOKUP(A143,[1]percentages_after!$A:$C,3,FALSE) -> 41% | F143: =VLOOKUP(A143,[1]percentages_after!$A:$D,4,FALSE)+VLOOKUP(A143,[1]percentages_after!$A:$E,5,FALSE) -> 27% | G143: 32%
A144: Cuba* | B144: UM | C144: =VLOOKUP(A144,[1]all_after!$A:$G,7,FALSE) -> 9,817 | D144: 91% | E144: =VLOOKUP(A144,[1]percentages_after!$A:$C,3,FALSE) -> 18% | F144: =VLOOKUP(A144,[1]percentages_after!$A:$D,4,FALSE)+VLOOKUP(A144,[1]percentages_after!$A:$E,5,FALSE) -> 74% | G144: 9%
A145: Dominica* | B145: UM | C145: =VLOOKUP(A145,[1]all_after!$A:$G,7,FALSE) -> 190 | D145: 98% | E145: =VLOOKUP(A145,[1]percentages_after!$A:$C,3,FALSE) -> 15% | F145: =VLOOKUP(A145,[1]percentages_after!$A:$D,4,FALSE)+VLOOKUP(A145,[1]percentages_after!$A:$E,5,FALSE) -> 83% | G145: 2%
A146: Dominican Republic* | B146: UM | C146: =VLOOKUP(A146,[1]all_after!$A:$G,7,FALSE) -> 30,820 | D146: 74% | E146: =VLOOKUP(A146,[1]percentages_after!$A:$C,3,FALSE) -> 39% | F146: =VLOOKUP(A146,[1]percentages_after!$A:$D,4,FALSE)+VLOOKUP(A146,[1]percentages_after!$A:$E,5,FALSE) -> 35% | G146: 26%
A147: Ecuador* | B147: UM | C147: =VLOOKUP(A147,[1]all_after!$A:$G,7,FALSE) -> 32,530 | D147: 91% | E147: =VLOOKUP(A147,[1]percentages_after!$A:$C,3,FALSE) -> 44% | F147: =VLOOKUP(A147,[1]percentages_after!$A:$D,4,FALSE)+VLOOKUP(A147,[1]percentages_after!$A:$E,5,FALSE) -> 47% | G147: 9%
A148: El Salvador* | B148: UM | C148: =VLOOKUP(A148,[1]all_after!$A:$G,7,FALSE) -> 17,064 | D148: 62% | E148: =VLOOKUP(A148,[1]percentages_after!$A:$C,3,FALSE) -> 32% | F148: =VLOOKUP(A148,[1]percentages_after!$A:$D,4,FALSE)+VLOOKUP(A148,[1]percentages_after!$A:$E,5,FALSE) -> 30% | G148: 38%
A149: Grenada* | B149: UM | C149: =VLOOKUP(A149,[1]all_after!$A:$G,7,FALSE) -> 589 | D149: 98% | E149: =VLOOKUP(A149,[1]percentages_after!$A:$C,3,FALSE) -> 4% | F149: =VLOOKUP(A149,[1]percentages_after!$A:$D,4,FALSE)+VLOOKUP(A149,[1]percentages_after!$A:$E,5,FALSE) -> 94% | G149: 2%
A150: Guatemala* | B150: UM | C150: =VLOOKUP(A150,[1]all_after!$A:$G,7,FALSE) -> 32,107 | D150: 73% | E150: =VLOOKUP(A150,[1]percentages_after!$A:$C,3,FALSE) -> 39% | F150: =VLOOKUP(A150,[1]percentages_after!$A:$D,4,FALSE)+VLOOKUP(A150,[1]percentages_after!$A:$E,5,FALSE) -> 34% | G150: 27%
A151: Guyana* | B151: H | C151: =VLOOKUP(A151,[1]all_after!$A:$G,7,FALSE) -> 3,610 | D151: 79% | E151: =VLOOKUP(A151,[1]percentages_after!$A:$C,3,FALSE) -> 10% | F151: =VLOOKUP(A151,[1]percentages_after!$A:$D,4,FALSE)+VLOOKUP(A151,[1]percentages_after!$A:$E,5,FALSE) -> 69% | G151: 21%
A152: Honduras* | B152: LM | C152: =VLOOKUP(A152,[1]all_after!$A:$G,7,FALSE) -> 13,845 | D152: 57% | E152: =VLOOKUP(A152,[1]percentages_after!$A:$C,3,FALSE) -> 26% | F152: =VLOOKUP(A152,[1]percentages_after!$A:$D,4,FALSE)+VLOOKUP(A152,[1]percentages_after!$A:$E,5,FALSE) -> 31% | G152: 43%
A153: Jamaica* | B153: UM | C153: =VLOOKUP(A153,[1]all_after!$A:$G,7,FALSE) -> 7,731 | D153: 97% | E153: =VLOOKUP(A153,[1]percentages_after!$A:$C,3,FALSE) -> 38% | F153: =VLOOKUP(A153,[1]percentages_after!$A:$D,4,FALSE)+VLOOKUP(A153,[1]percentages_after!$A:$E,5,FALSE) -> 59% | G153: 3%
A154: Montserrat* | B154: Not classified | C154: =VLOOKUP(A154,[1]all_after!$A:$G,7,FALSE) -> 39 | D154: 100% | E154: =VLOOKUP(A154,[1]percentages_after!$A:$C,3,FALSE) -> 0% | F154: =VLOOKUP(A154,[1]percentages_after!$A:$D,4,FALSE)+VLOOKUP(A154,[1]percentages_after!$A:$E,5,FALSE) -> 100% | G154: 0%
A155: Nicaragua* | B155: LM | C155: =VLOOKUP(A155,[1]all_after!$A:$G,7,FALSE) -> 8,137 | D155: 63% | E155: =VLOOKUP(A155,[1]percentages_after!$A:$C,3,FALSE) -> 31% | F155: =VLOOKUP(A155,[1]percentages_after!$A:$D,4,FALSE)+VLOOKUP(A155,[1]percentages_after!$A:$E,5,FALSE) -> 32% | G155: 37%
A156: Panama* | B156: H | C156: =VLOOKUP(A156,[1]all_after!$A:$G,7,FALSE) -> 11,176 | D156: 68% | E156: =VLOOKUP(A156,[1]percentages_after!$A:$C,3,FALSE) -> 42% | F156: =VLOOKUP(A156,[1]percentages_after!$A:$D,4,FALSE)+VLOOKUP(A156,[1]percentages_after!$A:$E,5,FALSE) -> 26% | G156: 32%
A157: Paraguay* | B157: UM | C157: =VLOOKUP(A157,[1]all_after!$A:$G,7,FALSE) -> 15,880 | D157: 99% | E157: =VLOOKUP(A157,[1]percentages_after!$A:$C,3,FALSE) -> 20% | F157: =VLOOKUP(A157,[1]percentages_after!$A:$D,4,FALSE)+VLOOKUP(A157,[1]percentages_after!$A:$E,5,FALSE) -> 79% | G157: 1%
A158: Peru* | B158: UM | C158: =VLOOKUP(A158,[1]all_after!$A:$G,7,FALSE) -> 60,153 | D158: 85% | E158: =VLOOKUP(A158,[1]percentages_after!$A:$C,3,FALSE) -> 74% | F158: =VLOOKUP(A158,[1]percentages_after!$A:$D,4,FALSE)+VLOOKUP(A158,[1]percentages_after!$A:$E,5,FALSE) -> 11% | G158: 15%
A159: Saint Kitts and Nevis* | B159: H | C159: =VLOOKUP(A159,[1]all_after!$A:$G,7,FALSE) -> 309 | D159: 97% | E159: =VLOOKUP(A159,[1]percentages_after!$A:$C,3,FALSE) -> 8% | F159: =VLOOKUP(A159,[1]percentages_after!$A:$D,4,FALSE)+VLOOKUP(A159,[1]percentages_after!$A:$E,5,FALSE) -> 90% | G159: 3%
A160: Saint Lucia* | B160: UM | C160: =VLOOKUP(A160,[1]all_after!$A:$G,7,FALSE) -> 533 | D160: 82% | E160: =VLOOKUP(A160,[1]percentages_after!$A:$C,3,FALSE) -> 23% | F160: =VLOOKUP(A160,[1]percentages_after!$A:$D,4,FALSE)+VLOOKUP(A160,[1]percentages_after!$A:$E,5,FALSE) -> 58% | G160: 18%
A161: Saint Vincent and the Grenadines* | B161: UM | C161: =VLOOKUP(A161,[1]all_after!$A:$G,7,FALSE) -> 372 | D161: 97% | E161: =VLOOKUP(A161,[1]percentages_after!$A:$C,3,FALSE) -> 10% | F161: =VLOOKUP(A161,[1]percentages_after!$A:$D,4,FALSE)+VLOOKUP(A161,[1]percentages_after!$A:$E,5,FALSE) -> 86% | G161: 3%
A162: Suriname* | B162: UM | C162: =VLOOKUP(A162,[1]all_after!$A:$G,7,FALSE) -> 1,912 | D162: 76% | E162: =VLOOKUP(A162,[1]percentages_after!$A:$C,3,FALSE) -> 6% | F162: =VLOOKUP(A162,[1]percentages_after!$A:$D,4,FALSE)+VLOOKUP(A162,[1]percentages_after!$A:$E,5,FALSE) -> 70% | G162: 24%
A163: Trinidad and Tobago* | B163: H | C163: =VLOOKUP(A163,[1]all_after!$A:$G,7,FALSE) -> 6,211 | D163: 93% | E163: =VLOOKUP(A163,[1]percentages_after!$A:$C,3,FALSE) -> 54% | F163: =VLOOKUP(A163,[1]percentages_after!$A:$D,4,FALSE)+VLOOKUP(A163,[1]percentages_after!$A:$E,5,FALSE) -> 39% | G163: 7%
A164: Uruguay* | B164: H | C164: =VLOOKUP(A164,[1]all_after!$A:$G,7,FALSE) -> 12,891 | D164: 72% | E164: =VLOOKUP(A164,[1]percentages_after!$A:$C,3,FALSE) -> 25% | F164: =VLOOKUP(A164,[1]percentages_after!$A:$D,4,FALSE)+VLOOKUP(A164,[1]percentages_after!$A:$E,5,FALSE) -> 47% | G164: 28%
A165: West Asia | C165: 870,413 | D165: 82% | E165: 8% | F165: 74% | G165: 18%
A166: Afghanistan* | B166: L | C166: =VLOOKUP(A166,[1]all_after!$A:$G,7,FALSE) -> 8,568 | D166: =SUM(E166:F166) -> 99% | E166: =VLOOKUP(A166,[1]percentages_after!$A:$C,3,FALSE) -> 0% | F166: =VLOOKUP(A166,[1]percentages_after!$A:$D,4,FALSE)+VLOOKUP(A166,[1]percentages_after!$A:$E,5,FALSE) -> 99% | G166: =1-D166 -> 1%
A167: Bangladesh* | B167: LM | C167: =VLOOKUP(A167,[1]all_after!$A:$G,7,FALSE) -> 47,247 | D167: 93% | E167: =VLOOKUP(A167,[1]percentages_after!$A:$C,3,FALSE) -> 20% | F167: =VLOOKUP(A167,[1]percentages_after!$A:$D,4,FALSE)+VLOOKUP(A167,[1]percentages_after!$A:$E,5,FALSE) -> 73% | G167: =1-D167 -> 7%
A168: India* | B168: LM | C168: =VLOOKUP(A168,[1]all_after!$A:$G,7,FALSE) -> 714,042 | D168: 80% | E168: =VLOOKUP(A168,[1]percentages_after!$A:$C,3,FALSE) -> 5% | F168: =VLOOKUP(A168,[1]percentages_after!$A:$D,4,FALSE)+VLOOKUP(A168,[1]percentages_after!$A:$E,5,FALSE) -> 76% | G168: =1-D168 -> 20%
A169: Maldives* | B169: UM | C169: =VLOOKUP(A169,[1]all_after!$A:$G,7,FALSE) -> 3,488 | D169: 94% | E169: =VLOOKUP(A169,[1]percentages_after!$A:$C,3,FALSE) -> 37% | F169: =VLOOKUP(A169,[1]percentages_after!$A:$D,4,FALSE)+VLOOKUP(A169,[1]percentages_after!$A:$E,5,FALSE) -> 57% | G169: 6%
A170: Nepal* | B170: LM | C170: =VLOOKUP(A170,[1]all_after!$A:$G,7,FALSE) -> 13,744 | D170: 77% | E170: =VLOOKUP(A170,[1]percentages_after!$A:$C,3,FALSE) -> 6% | F170: =VLOOKUP(A170,[1]percentages_after!$A:$D,4,FALSE)+VLOOKUP(A170,[1]percentages_after!$A:$E,5,FALSE) -> 71% | G170: 23%
A171: Pakistan* | B171: LM | C171: =VLOOKUP(A171,[1]all_after!$A:$G,7,FALSE) -> 65,764 | D171: 86% | E171: =VLOOKUP(A171,[1]percentages_after!$A:$C,3,FALSE) -> 23% | F171: =VLOOKUP(A171,[1]percentages_after!$A:$D,4,FALSE)+VLOOKUP(A171,[1]percentages_after!$A:$E,5,FALSE) -> 63% | G171: 14%
A172: Sri Lanka* | B172: LM | C172: =VLOOKUP(A172,[1]all_after!$A:$G,7,FALSE) -> 17,559 | D172: 97% | E172: =VLOOKUP(A172,[1]percentages_after!$A:$C,3,FALSE) -> 56% | F172: =VLOOKUP(A172,[1]percentages_after!$A:$D,4,FALSE)+VLOOKUP(A172,[1]percentages_after!$A:$E,5,FALSE) -> 41% | G172: 3%
A175: Source: WTO Integrated Database, WTO Analytical Database, and World Bank, 2024
A176: * MFN and preferential shares estimated based on methodology outlined in ERSD-2025-02 working paper, section 4
A177: a Income groups as defined by the World Bank, https://datahelpdesk.worldbank.org/knowledgebase/articles/906519-world-bank-country-and-lending-groups
A178: -> L-low income, LM-lower-middle income, UM-upper-middle income, H-high income.
